Workbook

Sheet 部门预算收支总表
A1: 部门预算收支总表 | B1: ="" ->  | C1: ="" ->  | D1: ="" ->  | E1: ="" -> 
A2: 部门编码及名称：河北唐山南堡经济开发区城市建设管理局 | B2: 预算年度：2017 | C2: ="" ->  | D2: 预算年度：2020 | E2: 金额单位：万元
A3: 序号 | B3: 收入 | C3: 资金来源 | D3: 支出 | E3: ="" -> 
A4: 栏次 | B4: 项 目 | C4: 预算数 | D4: 项 目 | E4: 预算数
A5: 栏次 | B5: 1 | C5: 2 | D5: 3 | E5: 4
A6: 1 | B6: 一、财政拨款收入 | C6: 26985.46 | D6: 一、一般公共服务支出
A7: 2 | B7: 二、上级拨款收入 | C7: 0 | D7: 二、外交支出 | E7: 0
A8: 3 | B8: 三、事业收入 | C8: 0 | D8: 三、国防支出 | E8: 0
A9: 4 | B9: 其中：财政专户收入 | C9: 0 | D9: 四、公共安全支出 | E9: 50
A10: 5 | B10: 四、经营收入 | C10: 0 | D10: 五、教育支出 | E10: 0
A11: 6 | B11: 五、附属单位上缴收入 | C11: 0 | D11: 六、科学技术支出 | E11: 0
A12: 7 | B12: 六、其他收入 | C12: 0 | D12: 七、文化旅游体育与传媒支出 | E12: 0
A13: 8 | D13: 八、社会保障和就业支出 | E13: 37.8
A14: 9 | D14: 九、卫生健康支出 | E14: 37.7
A15: 10 | D15: 十、节能环保支出 | E15: 300
A16: 11 | D16: 十一、城乡社区支出 | E16: 26266.65
A17: 12 | D17: 十二、农林水支出 | E17: 261
A18: 13 | D18: 十三、交通运输支出 | E18: 0
A19: 14 | D19: 十四、资源勘探信息等支出 | E19: 0
A20: 15 | D20: 十五、商业服务业等支出 | E20: 0
A21: 16 | D21: 十六、金融支出 | E21: 0
A22: 17 | D22: 十七、援助其他地区支出 | E22: 0
A23: 18 | D23: 十八、国土海洋气候等支出 | E23: 0
A24: 19 | D24: 十九、住房保障支出 | E24: 30.31
A25: 20 | D25: 二十、粮油物资储备支出 | E25: 0
A26: 21 | D26: 二十一、灾害防治及应急管理支出 | E26: 2
A27: 22 | D27: 二十二、国债还本付息支出 | E27: 0
A28: 23 | D28: 二十三、其他支出 | E28: 0
A29: 24 | B29: 本年收入合计 | C29: 26985.46 | D29: 本年支出合计 | E29: =SUM(E7:E28) -> 26985.46
A30: 25 | B30: 用事业基金弥补收支差额 | C30: 0 | D30: 结余分配 | E30: 0
A31: 26 | B31: 年初结转和结余 | C31: 0 | D31: 年末结转和结余 | E31: 0
A32: 27 | B32: 合计 | C32: 26985.46 | D32: 合计 | E32: 26985.46

Sheet 部门预算收入总表
A1: 部门预算收入总表 | B1: ="" -> 
A2: 部门编码及名称：河北唐山南堡经济开发区城市建设管理局 | B2: ="" ->  | F2: 年度： | H2: 预算年度：2020 | I2: ="" ->  | J2: 金额单位：万元 | K2: ="" -> 
A3: 序号 | B3: 科目 | C3: ="" ->  | D3: 本年收入合计 | E3: 财政拨款收入 | F3: 上级补助收入 | G3: 事业收入 | H3: ="" ->  | I3: 经营收入 | J3: 附属单位上缴收入 | K3: 其他收入
A4: 栏次 | B4: 功能分类科目编码 | C4: 科目名称 | D4: ="" ->  | E4: 小计 | F4: 事业费限额 | G4: 小计 | H4: 其中：财政专户收入 | I4: ="" ->  | J4: ="" ->  | K4: 其他来源收入
A5: 栏次 | B5: 1 | C5: 2 | D5: 3 | E5: 4 | F5: 5 | G5: 6 | H5: 7 | I5: 8 | J5: 9 | K5: 10
A6: 1 | C6: 合计 | D6: =SUM(D7:D19) -> 26985.46 | E6: =SUM(E7:E19) -> 26985.46 | F6: 0 | G6: 0 | H6: 0 | I6: 0 | J6: 0 | K6: 0
A7: 2 | B7: 2049901 | C7: 其他公共安全支出 | D7: 50 | E7: 50
A8: 3 | B8: 2080505 | C8: 机关事业单位基本养老保险缴费支出 | D8: 37.8 | E8: 37.8
A9: 4 | B9: 2101101 | C9: 行政单位医疗 | D9: 37.7 | E9: 37.7 | F9: 0 | G9: 0 | H9: 0 | I9: 0 | J9: 0 | K9: 0
A10: 5 | B10: 2110302 | C10: 水体 | D10: 300 | E10: 300
A11: 6 | B11: 2120101 | C11: 行政运行 | D11: 523.51 | E11: 523.51 | F11: 0 | G11: 0 | H11: 0 | I11: 0 | J11: 0 | K11: 0
A12: 7 | B12: 2120303 | C12: 小城镇基础设施建设 | D12: 22169.08 | E12: 22169.08
A13: 8 | B13: 2120501 | C13: 城乡社区环境卫生 | D13: 1627.57 | E13: 1627.57 | F13: 0 | G13: 0 | H13: 0 | I13: 0 | J13: 0 | K13: 0
A14: 9 | B14: 2121301 | C14: 城市公共设施 | D14: 400 | E14: 400
A15: 10 | B15: 2129901 | C15: 其他城乡社区支出 | D15: 1546.49 | E15: 1546.49 | F15: 0 | G15: 0 | H15: 0 | I15: 0 | J15: 0 | K15: 0
A16: 11 | B16: 2130311 | C16: 水资源节约管理与保护 | D16: 76 | E16: 76
A17: 12 | B17: 2130314 | C17: 防汛 | D17: 185 | E17: 185
A18: 13 | B18: 2210201 | C18: 住房公积金 | D18: 30.31 | E18: 30.31 | F18: 0 | G18: 0 | H18: 0 | I18: 0 | J18: 0 | K18: 0
A19: 14 | B19: 2240201 | C19: 行政运行 | D19: 2 | E19: 2

Sheet 部门预算支出总表
A1: 部门预算支出总表 | B1: ="" -> 
A2: 部门编码及名称：河北唐山南堡经济开发区城市建设管理局 | B2: ="" ->  | E2: 年度： | F2: 预算年度：2020 | H2: 金额单位：万元 | I2: ="" -> 
A3: 序号 | B3: 科目 | C3: ="" ->  | D3: 本年支出合计 | E3: 基本支出 | F3: 项目支出 | G3: 上缴上级支出 | H3: 经营支出 | I3: 对附属单位补助支出
A4: 栏次 | B4: 功能分类科目编码 | C4: 科目名称 | D4: ="" ->  | E4: 事业费限额 | F4: 其他 | G4: ="" ->  | H4: ="" ->  | I4: 其他来源收入
A5: 栏次 | B5: 1 | C5: 2 | D5: 3 | E5: 4 | F5: 5 | G5: 6 | H5: 7 | I5: 8
A6: 1 | C6: 合计 | D6: =SUM(D7:D19) -> 26985.46 | E6: =SUM(E7:E19) -> 599.32 | F6: =SUM(F7:F19) -> 26386.14 | G6: 0 | H6: 0 | I6: 0
A7: 2 | B7: 2049901 | C7: 其他公共安全支出 | D7: 50 | E7: 0 | F7: 50 | G7: 0 | H7: 0 | I7: 0
A8: 3 | B8: 2080505 | C8: 机关事业单位基本养老保险缴费支出 | D8: 37.8 | E8: 37.8 | F8: 0 | H8: 0 | I8: 0
A9: 4 | B9: 2101101 | C9: 行政单位医疗 | D9: 37.7 | E9: 37.7 | F9: 0 | H9: 0 | I9: 0
A10: 5 | B10: 2110302 | C10: 水体 | D10: 300 | F10: 300 | H10: 0 | I10: 0
A11: 6 | B11: 2120101 | C11: 行政运行 | D11: 523.51 | E11: 493.51 | F11: 30 | G11: 0 | H11: 0 | I11: 0
A12: 7 | B12: 2120303 | C12: 小城镇基础设施建设 | D12: 22169.08 | F12: 22169.08 | G12: 0 | H12: 0 | I12: 0
A13: 8 | B13: 2120501 | C13: 城乡社区环境卫生 | D13: 1627.57 | F13: 1627.57 | G13: 0 | H13: 0 | I13: 0
A14: 9 | B14: 2121301 | C14: 城市公共设施 | D14: 400 | F14: 400 | G14: 0 | H14: 0 | I14: 0
A15: 10 | B15: 2129901 | C15: 其他城乡社区支出 | D15: 1546.49 | F15: 1546.49 | G15: 0 | H15: 0 | I15: 0
A16: 11 | B16: 2130311 | C16: 水资源节约管理与保护 | D16: 76 | F16: 76 | G16: 0 | H16: 0 | I16: 0
A17: 12 | B17: 2130314 | C17: 防汛 | D17: 185 | F17: 185
A18: 13 | B18: 2210201 | C18: 住房公积金 | D18: 30.31 | E18: 30.31
A19: 14 | B19: 2240201 | C19: 行政运行 | D19: 2 | F19: 2

Sheet 部门预算财政拨款收支总表
A1: 部门预算财政拨款收支总表 | B1: ="" -> 
A2: 部门编码及名称：河北唐山南堡经济开发区城市建设管理局 | E2: 预算年度：2020 | G2: 金额单位：万元
D3: 支出
A4: 栏次 | B4: 项 目 | C4: 金额 | D4: 项 目 | E4: 合计 | F4: 一般公共预算财政拨款 | G4: 政府性基金预算财政拨款 | H4: 国有资本经营预算财政拨款
A5: 栏次 | B5: 1 | C5: 2 | D5: 3 | E5: 4 | F5: 5 | G5: 6 | H5: 7
A6: 1 | B6: 一、一般公共预算财政拨款 | C6: 26585.46 | D6: 一、一般公共服务支出 | G6: 0 | H6: 0
A7: 2 | B7: 二、政府性基金预算财政拨款 | C7: 400 | D7: 二、外交支出 | G7: 0 | H7: 0
A8: 3 | B8: 三、国有资本经营预算财政拨款 | C8: 0 | D8: 三、国防支出 | G8: 0 | H8: 0
A9: 4 | D9: 四、公共安全支出 | E9: =F9+G9 -> 50 | F9: 50 | G9: 0 | H9: 0
A10: 5 | D10: 五、教育支出 | E10: =F10+G10 -> 0 | F10: 0 | G10: 0 | H10: 0
A11: 6 | D11: 六、科学技术支出 | E11: 0 | F11: 0 | G11: 0 | H11: 0
A12: 7 | D12: 七、文化体育与传媒支出 | E12: 0 | F12: 0 | G12: 0 | H12: 0
A13: 8 | D13: 八、社会保障和就业支出 | E13: 37.8 | F13: 37.8 | H13: 0
A14: 9 | D14: 九、卫生健康支出 | E14: 37.7 | F14: 37.7 | H14: 0
A15: 10 | D15: 十、节能环保支出 | E15: 300 | F15: 300 | H15: 0
A16: 11 | D16: 十一、城乡社区支出 | E16: 26266.65 | F16: 25866.65 | G16: 400 | H16: 0
A17: 12 | D17: 十二、农林水支出 | E17: 261 | F17: 261 | H17: 0
A18: 13 | D18: 十三、交通运输支出 | E18: =F18+G18 -> 0 | F18: 0 | G18: 0 | H18: 0
A19: 14 | D19: 十四、资源勘探信息等支出 | E19: 0 | F19: 0 | G19: 0 | H19: 0
A20: 15 | D20: 十五、商业服务业等支出 | E20: 0 | F20: 0 | G20: 0 | H20: 0
A21: 16 | D21: 十六、金融支出 | E21: 0 | F21: 0 | G21: 0 | H21: 0
A22: 17 | D22: 十七、援助其他地区支出 | E22: 0 | F22: 0 | G22: 0 | H22: 0
A23: 18 | D23: 十八、国土海洋气候等支出 | E23: 0 | F23: 0 | G23: 0 | H23: 0
A24: 19 | D24: 十九、住房保障支出 | E24: 30.31 | F24: 30.31 | G24: 0 | H24: 0
A25: 20 | D25: 二十、粮油物资储备支出 | E25: 0 | F25: 0 | G25: 0 | H25: 0
A26: 21 | D26: 二十一、灾害防治及应急管理支出 | E26: 2 | F26: 2
A27: 22 | D27: 二十一、国债还本付息支出 | E27: 0 | F27: 0 | G27: 0 | H27: 0
A28: 23 | D28: 二十二、其他支出 | E28: 0 | F28: 0 | G28: 0 | H28: 0
A29: 24 | B29: 本年收入合计 | C29: 26985.46 | D29: 本年支出合计 | E29: 26985.46 | F29: =SUM(F6:F28) -> 26585.46 | G29: 400 | H29: 0
A30: 25 | B30: 年初财政拨款结转和结余 | D30: 年末结转和结余 | G30: 0 | H30: 0
A31: 26 | B31: 合计 | C31: 26985.46 | D31: 合计 | E31: 26985.46 | F31: 26585.46 | G31: 400 | H31: 0

Sheet 部门预算一般公共预算财政拨款支出表
A1: 部门预算一般公共预算财政拨款支出表 | B1: ="" ->  | C1: ="" ->  | D1: ="" ->  | E1: ="" ->  | F1: ="" -> 
A2: 部门编码及名称：河北唐山南堡经济开发区城市建设管理局 | B2: ="" ->  | C2: 预算年度：2017 | D2: ="" ->  | E2: 预算年度：2020 | F2: 金额单位：万元
A3: 序号 | B3: 科目 | C3: ="" ->  | D3: 合计 | E3: 基本支出 | F3: 项目支出
A4: 栏次 | B4: 功能分类科目编码 | C4: 科目名称 | D4: ="" ->  | E4: ="" ->  | F4: 其他来源收入
A5: 栏次 | B5: 1 | C5: 2 | D5: 3 | E5: 4 | F5: 5
A6: 1 | C6: 合计 | D6: =E6+F6 -> 26585.46 | E6: =SUM(E7:E18) -> 599.32 | F6: =SUM(F7:F18) -> 25986.14
A7: 2 | B7: 2049901 | C7: 其他公共安全支出 | D7: 50 | F7: 50
A8: 3 | B8: 2080505 | C8: 机关事业单位基本养老保险缴费支出 | D8: 37.8 | E8: 37.8
A9: 4 | B9: 2101101 | C9: 行政单位医疗 | D9: 37.7 | E9: 37.7
A10: 5 | B10: 2110302 | C10: 水体 | D10: 300 | F10: 300
A11: 6 | B11: 2120101 | C11: 行政运行 | D11: 523.51 | E11: 493.51 | F11: 30
A12: 7 | B12: 2120303 | C12: 小城镇基础设施建设 | D12: 22169.08 | F12: 22169.08
A13: 8 | B13: 2120501 | C13: 城乡社区环境卫生 | D13: 1627.57 | F13: 1627.57
A14: 9 | B14: 2129901 | C14: 其他城乡社区支出 | D14: 1546.49 | F14: 1546.49
A15: 10 | B15: 2130311 | C15: 水资源节约管理与保护 | D15: 76 | F15: 76
A16: 11 | B16: 2130314 | C16: 防汛 | D16: 185 | F16: 185
A17: 12 | B17: 2210201 | C17: 住房公积金 | D17: 30.31 | E17: 30.31
A18: 13 | B18: 2240201 | C18: 行政运行 | D18: 2 | F18: 2

Sheet 部门预算一般公共预算财政拨款基本支出表
A1: 部门预算一般公共预算财政拨款基本支出表 | B1: ="" ->  | C1: ="" ->  | D1: ="" ->  | E1: ="" ->  | F1: ="" -> 
A2: 部门编码及名称：河北唐山南堡经济开发区城市建设管理局 | B2: ="" ->  | C2: 预算年度：2017 | D2: ="" ->  | E2: 预算年度：2020 | F2: 金额单位：万元
A3: 序号 | B3: 科目 | C3: ="" ->  | D3: 基本支出 | E3: 基本支出 | F3: 项目支出
A4: 栏次 | B4: 经济分类科目编码 | C4: 科目名称 | D4: 合计 | E4: 人员经费 | F4: 公用经费
A5: 栏次 | B5: 1 | C5: 2 | D5: 3 | E5: 4 | F5: 5
A6: 1 | C6: 合计 | D6: =D7+D16+D37+D41 -> 599.32 | E6: =E7+E16+E37 -> 570.04 | F6: =F7+F16+F37+F41 -> 29.28
A7: 2 | B7: 301 | C7: 工资福利支出 | D7: =E7+F7 -> 519.29 | E7: =SUM(E8:E15) -> 519.29
A8: 3 | B8: 30101 | C8: 基本工资 | D8: 114.46 | E8: 114.46
A9: 4 | B9: 30102 | C9: 津贴补贴 | D9: 10.82 | E9: 10.82
A10: 5 | B10: 30103 | C10: 奖金 | D10: 0.35 | E10: 0.35
A11: 6 | B11: 30108 | C11: 基本养老保险费 | D11: 37.8 | E11: 37.8
A12: 7 | B12: 30110 | C12: 基本医疗保险费 | D12: 37.7 | E12: 37.7
A13: 8 | B13: 30112 | C13: 其他社保缴费 | D13: 3.4 | E13: 3.4
A14: 9 | B14: 30107 | C14: 绩效工资 | D14: 131.79 | E14: 131.79
A15: 10 | B15: 30199 | C15: 其他工资福利支出 | D15: 182.97 | E15: 182.97
A16: 11 | B16: 302 | C16: 商品和服务支出 | D16: 26.48 | F16: =SUM(F17:F36) -> 26.48
A17: 12 | B17: 30201 | C17: 办公费 | D17: 4.3 | F17: 4.3
A18: 13 | B18: 30202 | C18: 印刷费 | D18: 1 | F18: 1
A19: 14 | B19: 30205 | C19: 水费 | D19: 0 | F19: 0
A20: 15 | B20: 30206 | C20: 电费 | D20: 0
A21: 16 | B21: 30207 | C21: 邮电费 | D21: 7 | F21: 7
A22: 17 | B22: 30208 | C22: 取暖费 | D22: 0
A23: 18 | B23: 30209 | C23: 物业管理费 | D23: 0
A24: 19 | B24: 30211 | C24: 差旅费 | D24: 5 | F24: 5
A25: 20 | B25: 30212 | C25: 因公出国（境）费用 | D25: 0
A26: 21 | B26: 30213 | C26: 维修(护)费 | D26: 1 | F26: 1
A27: 22 | B27: 30215 | C27: 会议费 | D27: 0
A28: 23 | B28: 30216 | C28: 培训费 | D28: 0
A29: 24 | B29: 30217 | C29: 公务接待费 | D29: 0
A30: 25 | B30: 30225 | C30: 专用燃料费 | D30: 0
A31: 26 | B31: 30226 | C31: 劳务费 | D31: 3.6 | F31: 3.6
A32: 27 | B32: 30228 | C32: 工会经费 | D32: 0 | F32: 0
A33: 28 | B33: 30229 | C33: 福利费 | D33: 0 | F33: 0
A34: 29 | B34: 30231 | C34: 公务用车运行维护费 | D34: 0 | F34: 0
A35: 30 | B35: 30239 | C35: 公务交通补贴 | D35: 0.48 | F35: 0.48
A36: 31 | B36: 30299 | C36: 其他商品和服务支出 | D36: 4.1 | F36: 4.1
A37: 32 | B37: 303 | C37: 对个人和家庭的补助 | D37: 50.75 | E37: =SUM(E38:E40) -> 50.75
A38: 33 | B38: 30309 | C38: 奖励金 | D38: 0.12 | E38: 0.12
A39: 34 | B39: 30313 | C39: 住房公积金 | D39: 30.31 | E39: 30.31
A40: 35 | B40: 30102 | C40: 采暖补贴 | D40: 20.32 | E40: 20.32
A41: 36 | B41: 310 | C41: 其他资本性支出 | D41: 2.8 | F41: =F42 -> 2.8
A42: 37 | B42: 31002 | C42: 办公设备购置 | D42: 2.8 | F42: 2.8

Sheet 部门预算政府基金预算财政拨款支出表
A1: 部门预算政府基金预算财政拨款支出表 | B1: ="" ->  | C1: ="" ->  | D1: ="" ->  | E1: ="" ->  | F1: ="" -> 
A2: 部门编码及名称：河北唐山南堡经济开发区城市建设管理局 | B2: ="" ->  | C2: 预算年度：2017 | D2: ="" ->  | E2: 预算年度：2020 | F2: 金额单位：万元
A3: 序号 | B3: 科目 | C3: ="" ->  | D3: 合计 | E3: 基本支出 | F3: 项目支出
A4: 栏次 | B4: 功能分类科目编码 | C4: 科目名称 | D4: ="" ->  | E4: ="" ->  | F4: 其他来源收入
A5: 栏次 | B5: 1 | C5: 2 | D5: 3 | E5: 4 | F5: 5
A6: 1 | B6: 2121301 | C6: 城市公共设施 | D6: =E6+F6 -> 400 | F6: 400
C7: 合计 | D7: 400 | E7: 0 | F7: 400

Sheet 部门预算国有资本经营预算财政拨款支出表
A1: 部门预算国有资本经营预算财政拨款支出表
A2: 部门编码及名称：河北唐山南堡经济开发区城市建设管理局 | C2: 预算年度：2017 | E2: 预算年度：2020 | F2: 金额单位：万元
A3: 序号 | B3: 科目 | D3: 合计 | E3: 基本支出 | F3: 项目支出
A4: 栏次 | B4: 功能分类科目编码 | C4: 科目名称 | F4: 其他来源收入
A5: 栏次 | B5: 1 | C5: 2 | D5: 3 | E5: 4 | F5: 5
E6: 0 | F6: 0
A15: 注：无国有资本经营预算，空表列示。

Sheet 部门预算财政拨款“三公”经费支出表
A1: 部门预算财政拨款“三公”经费支出表 | B1: ="" ->  | C1: ="" ->  | D1: ="" ->  | E1: ="" ->  | F1: ="" -> 
A2: 部门编码及名称：河北唐山南堡经济开发区城市建设管理局 | B2: ="" ->  | C2: 预算年度：2017 | D2: ="" ->  | E2: 预算年度：2020 | F2: 金额单位：万元
A3: 序号 | B3: 项 目 | C3: 资金来源 | D3: ="" ->  | E3: ="" ->  | F3: ="" -> 
A4: 栏次 | B4: ="" ->  | C4: 合计 | D4: 一般公共预算财政拨款 | E4: 政府性基金财政拨款 | F4: 国有资本经营预算财政拨款
A5: 栏次 | B5: 1 | C5: 2 | D5: 3 | E5: 4 | F5: 5
A6: 1 | B6: 合计 | E6: 0 | F6: 0
A7: 2 | B7: 一、因公出国（境）费 | E7: 0 | F7: 0
A8: 3 | B8: 二、公务用车购置及运维费 | E8: 0 | F8: 0
A9: 4 | B9: 其中：公务用车购置费 | E9: 0 | F9: 0
A10: 5 | B10: 公务用车运行费 | E10: 0 | F10: 0
A11: 6 | B11: 三、公务接待费 | E11: 0 | F11: 0
A13: 注：无“三公”经费预算，空表列示。

Sheet Sheet1

Sheet Sheet2
